Workbook

Sheet Collateral Tables
B1: CNH CAPITAL AUSTRALIA RECEIVABLES TRUST SERIES 2016-1 (TERM DEAL)
B2: COLLATERAL DATA TABLES
B4: OUTSTANDING RECEIVABLES | E4: 2016-04-30
B6: Opening Balance | E6: 349999833.4
B7: Principal Repayments - Scheduled | E7: =MIN('[1]16 May 16'!$H23,SUM([2]Sheet1!$B$3:$B$6)) -> 70539694.68
B8: Principal Repayments - Unscheduled | E8: =MAX('[1]16 May 16'!H23-'Collateral Tables'!E7,0) -> 4299938
A9: =SUM(E9) -> 84066.21 | B9: Charge-Offs | E9: ='[1]16 May 16'!$H37 -> 84066.21
B10: Reinstatements
B11: New Receivables Purchased
B12: Non Cash Change in Receivables
B13: Closing Balance | E13: =E6-E7-E8-E9+E10+E11-E12 -> 275076134.5
B15: PORTFOLIO STATISTICS
B17: Summary
B18: Number of contracts | E18: =[3]Summary!$B$4 -> 3422
B19: Dollar value of contracts | E19: =[3]Summary!$B$6 -> 80384.60974
B20: Number of contracts closed during the Quarter | E20: =[3]Summary!$B$19 -> 216
B21: Dollar value of contracts closed during the Quarter | E21: =[3]Summary!$B$20 -> 10129289.88
A23: =SUM(E23) -> 0 | B23: Dollar Value of Recoveries from Collateral | E23: =[3]Summary!$C$16 -> 0
B24: Dollar Value of Recoveries from Other Sources | E24: 0
B26: Average Term of Contracts (Months) | E26: =[4]Sheet1!$W$3424 -> 50.60256169
B27: Average Term to Maturity (Months) | E27: =[4]Sheet1!$X$3424 -> 33.58014303
B28: Average Residual / Balloon Payment * | E28: =[4]Sheet1!$AI$3424 -> 0.02404080908
B29: Average Seasoning (Months) | E29: =E26-E27 -> 17.02241867
B30: Average Dollar Value of Individual Assets | E30: =E19/E18 -> 23.4905347
B31: Weighted Average Interest Rate | E31: =[4]Sheet1!$AA$3424/100 -> 0.03665547144
B33: Payment in Arrears
A34: 1. 0 - 30 Days | B34: 0 - 30 Days | E34: =IFERROR(VLOOKUP($A34,'[5]Arrears Reporting'!$A:$D,3,FALSE),0) -> 3409 | F34: =IFERROR(VLOOKUP($A34,'[5]Arrears Reporting'!$A:$D,2,FALSE),0) -> 279917.05 | G34: =F34/F$50 -> 0.001017598457
A35: 2. 31 - 60 Days | B35: 31 - 60 Days | E35: =IFERROR(VLOOKUP($A35,'[5]Arrears Reporting'!$A:$D,3,FALSE),0) -> 8 | F35: =IFERROR(VLOOKUP($A35,'[5]Arrears Reporting'!$A:$D,2,FALSE),0) -> 230113.48 | G35: =F35/F$50 -> 0.0008365446911
A36: 3. 61 - 90 Days | B36: 61 - 90 Days | E36: =IFERROR(VLOOKUP($A36,'[5]Arrears Reporting'!$A:$D,3,FALSE),0) -> 3 | F36: =IFERROR(VLOOKUP($A36,'[5]Arrears Reporting'!$A:$D,2,FALSE),0) -> 35237.55 | G36: 0.0001281010803
A37: 4. 91 - 120 Days | B37: 91 - 120 Days | E37: =IFERROR(VLOOKUP($A37,'[5]Arrears Reporting'!$A:$D,3,FALSE),0) -> 1 | F37: =IFERROR(VLOOKUP($A37,'[5]Arrears Reporting'!$A:$D,2,FALSE),0) -> 48099.14 | G37: 0.0001748575538
A38: 5. 121 - 150 Days | B38: 121 - 150 Days | E38: =IFERROR(VLOOKUP($A38,'[5]Arrears Reporting'!$A:$D,3,FALSE),0) -> 1 | F38: =IFERROR(VLOOKUP($A38,'[5]Arrears Reporting'!$A:$D,2,FALSE),0) -> 30045.72 | G38: 0.0001092269239
A39: 6. 151 - 180 Days | B39: 151 - 180 Days | E39: =IFERROR(VLOOKUP($A39,'[5]Arrears Reporting'!$A:$D,3,FALSE),0) -> 0 | F39: =IFERROR(VLOOKUP($A39,'[5]Arrears Reporting'!$A:$D,2,FALSE),0) -> 0 | G39: 0
B40: Total | E40: =SUM(E34:E39) -> 3422 | F40: =SUM(F34:F39) -> 623412.94 | G40: =SUM(G34:G39) -> 0.002266328706
B41: * Expressed as a % of Aggreg. Rec. closing bal. | F41: > 30 days | G41: =SUM(G35:G39) -> 0.001248730249
A43: 0 - 30 Days | B43: Account Balances in Arrears
A44: 1. 0 - 30 Days | B44: 0 - 30 Days | E44: =IFERROR(VLOOKUP($A44,'[5]Arrears Reporting'!$A:$D,3,FALSE),0) -> 3409 | F44: =IFERROR(VLOOKUP($A44,'[5]Arrears Reporting'!$A:$D,4,FALSE),0) -> 273901148.8 | G44: =F44/F$50 -> 0.9957285071
A45: 2. 31 - 60 Days | B45: 31 - 60 Days | E45: =IFERROR(VLOOKUP($A45,'[5]Arrears Reporting'!$A:$D,3,FALSE),0) -> 8 | F45: =IFERROR(VLOOKUP($A45,'[5]Arrears Reporting'!$A:$D,4,FALSE),0) -> 698753.64 | G45: =F45/F$50 -> 0.00254021906
A46: 3. 61 - 90 Days | B46: 61 - 90 Days | E46: =IFERROR(VLOOKUP($A46,'[5]Arrears Reporting'!$A:$D,3,FALSE),0) -> 3 | F46: =IFERROR(VLOOKUP($A46,'[5]Arrears Reporting'!$A:$D,4,FALSE),0) -> 107754.56 | G46: 0.0003917263131
A47: 4. 91 - 120 Days | B47: 91 - 120 Days | E47: =IFERROR(VLOOKUP($A47,'[5]Arrears Reporting'!$A:$D,3,FALSE),0) -> 1 | F47: =IFERROR(VLOOKUP($A47,'[5]Arrears Reporting'!$A:$D,4,FALSE),0) -> 84424.18 | G47: 0.0003069120487
A48: 5. 121 - 150 Days | B48: 121 - 150 Days | E48: =IFERROR(VLOOKUP($A48,'[5]Arrears Reporting'!$A:$D,3,FALSE),0) -> 1 | F48: =IFERROR(VLOOKUP($A48,'[5]Arrears Reporting'!$A:$D,4,FALSE),0) -> 284053.38 | G48: 0.001032635494
A49: 6. 151 - 180 Days | B49: 151 - 180 Days | E49: =IFERROR(VLOOKUP($A49,'[5]Arrears Reporting'!$A:$D,3,FALSE),0) -> 0 | F49: =IFERROR(VLOOKUP($A49,'[5]Arrears Reporting'!$A:$D,4,FALSE),0) -> 0 | G49: 0
B50: Total | E50: =SUM(E44:E49) -> 3422 | F50: =SUM(F44:F49) -> 275076134.5 | G50: =SUM(G44:G49) -> 1
A51: NSW | F51: > 30 days | G51: =SUM(G45:G49) -> 0.004271492916
F52: >90 days | G52: =SUM(G47:G49) -> 0.001339547542
A54: VIC | B54: Geographic Distribution
A55: NSW | B55: New South Wales | E55: =F55/F$63 ->  | F55: =IFERROR(VLOOKUP(A55,'[5]Geographic '!$A:$C,3,FALSE),0) -> 0
A56: VIC | B56: Victoria | F56: =IFERROR(VLOOKUP(A56,'[5]Geographic '!$A:$C,3,FALSE),0) -> 0
A57: QLD | B57: Queensland | F57: =IFERROR(VLOOKUP(A57,'[5]Geographic '!$A:$C,3,FALSE),0) -> 0
A58: SA | B58: South Australia | F58: =IFERROR(VLOOKUP(A58,'[5]Geographic '!$A:$C,3,FALSE),0) -> 0
A59: NT | B59: Northern Territory | F59: =IFERROR(VLOOKUP(A59,'[5]Geographic '!$A:$C,3,FALSE),0) -> 0
A60: ACT | B60: Australian Capital Territory | F60: =IFERROR(VLOOKUP(A60,'[5]Geographic '!$A:$C,3,FALSE),0) -> 0
A61: TAS | B61: Tasmania | F61: =IFERROR(VLOOKUP(A61,'[5]Geographic '!$A:$C,3,FALSE),0) -> 0
A62: WA | B62: Western Australia | F62: =IFERROR(VLOOKUP(A62,'[5]Geographic '!$A:$C,3,FALSE),0) -> 0
B63: Total | E63: =SUM(E55:E62) ->  | F63: =SUM(F55:F62) -> 0
A64: AG | G64: =E13-F63 -> 275076134.5
A65: CE | B65: Top Industry Distribution
A66: AGRICULTURAL MACHINERY | B66: Agricultural | E66: =F66/F$69 -> 0.9852200433 | F66: =IFERROR(VLOOKUP(A66,'[5]Top Industry'!$A:$C,3,FALSE),) -> 271010521.2
A67: CONSTRUCTION EQUIPMENT | B67: Construction | E67: =F67/F$69 -> 0.01477995671 | F67: =IFERROR(VLOOKUP(A67,'[5]Top Industry'!$A:$C,3,FALSE),) -> 4065613.36
A68: MOTOR VEHICLE - AG | B68: Motor Vehicle AG | E68: =F68/F$69 -> 0 | F68: =IFERROR(VLOOKUP(A68,'[5]Top Industry'!$A:$C,3,FALSE),) -> 0
B69: Total | E69: =SUM(E66:E68) -> 1 | F69: =SUM(F66:F68) -> 275076134.5 | G69: =F63-F69 -> -275076134.5
A70: COMBINE
A71: 40-100 HP TRACTOR | B71: Collateral Types
A72: 100<140 HP TRACTOR | B72: 100-140 HP TRACTOR | E72: =IFERROR(F72/F$107,0) -> 0.1070289451 | F72: =IFERROR(VLOOKUP(A72,[5]Collateral!$A:$C,3,FALSE),"") -> 29441108.51
A73: 4 EWD Tractors | B73: 4 EWD Tractors | E73: 0.1081696967 | F73: =IFERROR(VLOOKUP(A73,[5]Collateral!$A:$C,3,FALSE),"") -> 29754902.05
A74: 40<100 HP Tractor | B74: 40<100 HP Tractor | E74: =IFERROR(F74/F$107,0) -> 0 | F74: =IFERROR(VLOOKUP(A74,[5]Collateral!$A:$C,3,FALSE),"") -> 
A75: 40<60 HP TRACTOR | B75: 40-60 HP TRACTOR | E75: =IFERROR(F75/F$107,0) -> 0.008262193752 | F75: =IFERROR(VLOOKUP(A75,[5]Collateral!$A:$C,3,FALSE),"") -> 2272732.32
A76: 4WD VEHICLE | B76: 4WD VEHICLE | E76: 8.109005908e-05 | F76: =IFERROR(VLOOKUP(A76,[5]Collateral!$A:$C,3,FALSE),"") -> 22305.94
A77: 60<100 HP TRACTOR | B77: 60-100 HP TRACTOR | E77: 0.06736803628 | F77: =IFERROR(VLOOKUP(A77,[5]Collateral!$A:$C,3,FALSE),"") -> 18531339.01
A78: Backhoes | B78: Backhoes | E78: 0.0005552519133 | F78: =IFERROR(VLOOKUP(A78,[5]Collateral!$A:$C,3,FALSE),"") -> 152736.55
A79: BALERS, WINDROWERS, MOWERS, RAKES | B79: BALERS, WINDROWERS, MOWERS, RAKES | E79: 0.03855102529 | F79: =IFERROR(VLOOKUP(A79,[5]Collateral!$A:$C,3,FALSE),"") -> 10604467.02
A80: QUAD BIKES | B80: QUAD BIKES | E80: 3.362654494e-05 | F80: =IFERROR(VLOOKUP(A80,[5]Collateral!$A:$C,3,FALSE),"") -> 9249.86
A81: Combines | B81: Combines | E81: 0.3471765873 | F81: =IFERROR(VLOOKUP(A81,[5]Collateral!$A:$C,3,FALSE),"") -> 95499993.64
A82: TRUCK - on Farm | B82: TRUCK - on Farm | E82: 7.090956848e-05 | F82: =IFERROR(VLOOKUP(A82,[5]Collateral!$A:$C,3,FALSE),"") -> 19505.53
A83: Cotton Pickers | B83: Cotton Pickers | E83: 0.0001980995919 | F83: =IFERROR(VLOOKUP(A83,[5]Collateral!$A:$C,3,FALSE),"") -> 54492.47
A84: CRAWLERS / DOZERS | B84: CRAWLERS / DOZERS | E84: 0 | F84: =IFERROR(VLOOKUP(A84,[5]Collateral!$A:$C,3,FALSE),"") -> 
A85: CULTIVATORS,SEEDERS, HARROWS | B85: CULTIVATORS,SEEDERS, HARROWS | E85: 0.01434327644 | F85: =IFERROR(VLOOKUP(A85,[5]Collateral!$A:$C,3,FALSE),"") -> 3945493.04
A86: Drill | B86: Drill | E86: 0.0006334074757 | F86: =IFERROR(VLOOKUP(A86,[5]Collateral!$A:$C,3,FALSE),"") -> 174235.28
A87: DUMP TRUCKS | B87: DUMP TRUCKS | E87: 0 | F87: =IFERROR(VLOOKUP(A87,[5]Collateral!$A:$C,3,FALSE),"") -> 
A88: EXCAVATORS / GRADERS | B88: EXCAVATORS / GRADERS | E88: 0.005080546673 | F88: =IFERROR(VLOOKUP(A88,[5]Collateral!$A:$C,3,FALSE),"") -> 1397537.14
A89: FEEDERS, MIXERS, WAGONS, BINS, FEED STORAGE | B89: FEEDERS, MIXERS, WAGONS, BINS, FEED STORAGE | E89: 0.002727348126 | F89: =IFERROR(VLOOKUP(A89,[5]Collateral!$A:$C,3,FALSE),"") -> 750228.38
A90: Front End Loader | B90: Front End Loader | E90: 0.0005463704449 | F90: =IFERROR(VLOOKUP(A90,[5]Collateral!$A:$C,3,FALSE),"") -> 150293.47
A91: Fronts | B91: Fronts | E91: 0.00397434351 | F91: =IFERROR(VLOOKUP(A91,[5]Collateral!$A:$C,3,FALSE),"") -> 1093247.05
A92: GUIDANCE SYSTEMS | B92: Guidance Systems | E92: 0 | F92: =IFERROR(VLOOKUP(A92,[5]Collateral!$A:$C,3,FALSE),"") -> 
A93: HARVESTERS - Other | B93: HARVESTERS - Other | E93: 0.00281193718 | F93: =IFERROR(VLOOKUP(A93,[5]Collateral!$A:$C,3,FALSE),"") -> 773496.81
A94: Irrigation Equipment | B94: Irrigation Equipment | E94: 0.0008339172004 | F94: =IFERROR(VLOOKUP(A94,[5]Collateral!$A:$C,3,FALSE),"") -> 229390.72
A95: Other AG | B95: Other AG | E95: 0.00568258018 | F95: =IFERROR(VLOOKUP(A95,[5]Collateral!$A:$C,3,FALSE),"") -> 1563142.19
A96: MATERIALS HANDLING EQUIPMENT | B96: MATERIALS HANDLING EQUIPMENT | E96: 0.0002507783168 | F96: =IFERROR(VLOOKUP(A96,[5]Collateral!$A:$C,3,FALSE),"") -> 68983.13
A97: Other CE | B97: Other CE | E97: 0.00097246597 | F97: =IFERROR(VLOOKUP(A97,[5]Collateral!$A:$C,3,FALSE),"") -> 267502.18
A98: Over 100 HP Tractor | B98: Over 100 HP Tractor | E98: 0 | F98: =IFERROR(VLOOKUP(A98,[5]Collateral!$A:$C,3,FALSE),"") -> 
A99: OVER 140 HP TRACTOR | B99: OVER 140 HP TRACTOR | E99: 0.2113099802 | F99: =IFERROR(VLOOKUP(A99,[5]Collateral!$A:$C,3,FALSE),"") -> 58126332.54
A100: Rollers | B100: Rollers | E100: 0 | F100: =IFERROR(VLOOKUP(A100,[5]Collateral!$A:$C,3,FALSE),"") -> 
A101: SCRAPERS | B101: SCRAPERS | E101: 0.0002746442549 | F101: =IFERROR(VLOOKUP(A101,[5]Collateral!$A:$C,3,FALSE),"") -> 75548.08
A102: SKIDSTEER / UNILOADER | B102: SKIDSTEER / UNILOADER | E102: 0.007280191331 | F102: =IFERROR(VLOOKUP(A102,[5]Collateral!$A:$C,3,FALSE),"") -> 2002606.89
A103: SPRAYING EQUIPMENT | B103: SPRAYING EQUIPMENT | E103: 0.06254556412 | F103: =IFERROR(VLOOKUP(A103,[5]Collateral!$A:$C,3,FALSE),"") -> 17204792.01
A104: Trenchers | B104: Trenchers | E104: 0 | F104: =IFERROR(VLOOKUP(A104,[5]Collateral!$A:$C,3,FALSE),"") -> 
A105: Under 40 HP Tractors | B105: Under 40 HP Tractors | E105: 0.002871108144 | F105: =IFERROR(VLOOKUP(A105,[5]Collateral!$A:$C,3,FALSE),"") -> 789773.33
A106: Wheel Loaders | B106: Wheel Loaders | E106: 0.0003660782502 | F106: =IFERROR(VLOOKUP(A106,[5]Collateral!$A:$C,3,FALSE),"") -> 100699.39
B107: Total | E107: =SUM(E72:E106) -> 1 | F107: =SUM(F72:F106) -> 275076134.5 | G107: =F69-F107 -> 0
A108: $ 0 - $25,000
A109: $ 25,001 to $50,000 | B109: Contract Balance Distribution
A110: $0 - $25,000 | B110: $ 0 - $25,000 | E110: =IFERROR(F110/F$121,0) -> 0.04900330064 | F110: =IFERROR(VLOOKUP(A110,'[5] Balance Distribution'!$A:$C,3,FALSE),"") -> 13479638.52
A111: $25,001 - $50,000 | B111: $ 25,001 to $50,000 | E111: =IFERROR(F111/F$121,0) -> 0.09921119724 | F111: =IFERROR(VLOOKUP(A111,'[5] Balance Distribution'!$A:$C,3,FALSE),"") -> 27290632.64
A112: $50,001 - $75,000 | B112: $ 50,001 to $75,000 | E112: 0.1111248815 | F112: =IFERROR(VLOOKUP(A112,'[5] Balance Distribution'!$A:$C,3,FALSE),"") -> 30567802.85
A113: $75,001 - $100,000 | B113: $ 75,001 to $100,000 | E113: 0.09672943604 | F113: =IFERROR(VLOOKUP(A113,'[5] Balance Distribution'!$A:$C,3,FALSE),"") -> 26607959.36
A114: $100,001 - $125,000 | B114: $100,001 to $125,000 | E114: 0.09681211591 | F114: =IFERROR(VLOOKUP(A114,'[5] Balance Distribution'!$A:$C,3,FALSE),"") -> 26630702.62
A115: $125,001 - $150,000 | B115: $125,001 to $150,000 | E115: 0.08953609415 | F115: =IFERROR(VLOOKUP(A115,'[5] Balance Distribution'!$A:$C,3,FALSE),"") -> 24629242.68
A116: $150,001 - $200,000 | B116: $150,000 to $200,000 | E116: 0.1219520603 | F116: =IFERROR(VLOOKUP(A116,'[5] Balance Distribution'!$A:$C,3,FALSE),"") -> 33546101.35
A117: $200,001 - $300,000 | B117: $200,001 to $300,000 | E117: 0.2057159522 | F117: =IFERROR(VLOOKUP(A117,'[5] Balance Distribution'!$A:$C,3,FALSE),"") -> 56587548.95
A118: $300,001 - $400,000 | B118: $300,001 to $400,000 | E118: 0.06693786214 | F118: =IFERROR(VLOOKUP(A118,'[5] Balance Distribution'!$A:$C,3,FALSE),"") -> 18413008.37
A119: $400,001 - $500,000 | B119: $400,001 to $500,000 | E119: 0.03052896753 | F119: =IFERROR(VLOOKUP(A119,'[5] Balance Distribution'!$A:$C,3,FALSE),"") -> 8397790.38
A120: $500,001+ | B120: $500,000+ | E120: 0.03244813232 | F120: =IFERROR(VLOOKUP(A120,'[5] Balance Distribution'!$A:$C,3,FALSE),"") -> 8925706.81
A121: $200,001 to $300,000 | B121: Total | E121: =SUM(E110:E120) -> 1 | F121: =SUM(F110:F120) -> 275076134.5 | G121: =F107-F121 -> 0
A122: 0
A123: 0 to 5 | B123: Residual / Balloon Payment Distribution
A124: 0 | B124: 0 | E124: =IFERROR(F124/F$134,0) -> 0.9110859187 | F124: =IFERROR(VLOOKUP(A124,'[5]Residual '!$A:$C,3,FALSE),"") -> 250617992.7
A125: 0 to 5 | B125: 0 to 5 | E125: =IFERROR(F125/F$134,0) -> 0 | F125: =IFERROR(VLOOKUP(A125,'[5]Residual '!$A:$C,3,FALSE),"") -> 
A126: 6 to 10 | B126: 06 to 10 | E126: 0.0006165197875 | F126: =IFERROR(VLOOKUP(A126,'[5]Residual '!$A:$C,3,FALSE),"") -> 169589.88
A127: 11 to 15 | B127: 11 to 15 | E127: 0.007526171485 | F127: =IFERROR(VLOOKUP(A127,'[5]Residual '!$A:$C,3,FALSE),"") -> 2070270.16
A128: 16 to 20 | B128: 16 to 20 | E128: 0.02457669245 | F128: =IFERROR(VLOOKUP(A128,'[5]Residual '!$A:$C,3,FALSE),"") -> 6760461.56
A129: 21 to 25 | B129: 21 to 25 | E129: 0.01752467828 | F129: =IFERROR(VLOOKUP(A129,'[5]Residual '!$A:$C,3,FALSE),"") -> 4820620.76
A130: 26 to 30 | B130: 26 to 30 | E130: 0.0127585968 | F130: =IFERROR(VLOOKUP(A130,'[5]Residual '!$A:$C,3,FALSE),"") -> 3509585.49
A131: 31 to 35 | B131: 31 to 35 | E131: 0.007338744357 | F131: =IFERROR(VLOOKUP(A131,'[5]Residual '!$A:$C,3,FALSE),"") -> 2018713.43
A132: 36 to 40 | B132: 36 to 40 | E132: 0.009303351068 | F132: =IFERROR(VLOOKUP(A132,'[5]Residual '!$A:$C,3,FALSE),"") -> 2559129.85
A133: 41+ % | B133: 41+% | E133: 0.009269327033 | F133: =IFERROR(VLOOKUP(A133,'[5]Residual '!$A:$C,3,FALSE),"") -> 2549770.65
E134: =SUM(E124:E133) -> 1 | F134: =SUM(F124:F133) -> 275076134.5 | G134: =F121-F134 -> 7.152557373e-07
A135: 2004 Q1
A136: 2004 Q2 | B136: Quarter of Maturity Distribution
A137: =RIGHT(B137,2)&LEFT(B137,4) -> Q12016 | B137: 2016Q1 | E137: =F137/F$166 -> 0 | F137: =IFERROR(VLOOKUP(A137,'[5]Quarter of Maturity Dist'!$A:$C,3,FALSE),0) -> 0
A138: Q22016 | B138: 2016Q2 | E138: 0.006176976796 | F138: =IFERROR(VLOOKUP(A138,'[5]Quarter of Maturity Dist'!$A:$C,3,FALSE),0) -> 1699138.9
A139: =RIGHT(B139,2)&LEFT(B139,4) -> Q32016 | B139: 2016Q3 | E139: 0.004850806204 | F139: =IFERROR(VLOOKUP(A139,'[5]Quarter of Maturity Dist'!$A:$C,3,FALSE),0) -> 1334341.02
A140: =RIGHT(B140,2)&LEFT(B140,4) -> Q42016 | B140: 2016Q4 | E140: 0.004846832868 | F140: =IFERROR(VLOOKUP(A140,'[5]Quarter of Maturity Dist'!$A:$C,3,FALSE),0) -> 1333248.05
A141: Q12017 | B141: 2017Q1 | E141: 0.03676917141 | F141: =IFERROR(VLOOKUP(A141,'[5]Quarter of Maturity Dist'!$A:$C,3,FALSE),0) -> 10114321.54
A142: Q22017 | B142: 2017Q2 | E142: 0.02657185867 | F142: =IFERROR(VLOOKUP(A142,'[5]Quarter of Maturity Dist'!$A:$C,3,FALSE),0) -> 7309284.17
A143: Q32017 | B143: 2017Q3 | E143: 0.02344709282 | F143: =IFERROR(VLOOKUP(A143,'[5]Quarter of Maturity Dist'!$A:$C,3,FALSE),0) -> 6449735.66
A144: Q42017 | B144: 2017Q4 | E144: 0.03396266076 | F144: =IFERROR(VLOOKUP(A144,'[5]Quarter of Maturity Dist'!$A:$C,3,FALSE),0) -> 9342317.44
A145: Q12018 | B145: 2018Q1 | E145: 0.08566295619 | F145: =IFERROR(VLOOKUP(A145,'[5]Quarter of Maturity Dist'!$A:$C,3,FALSE),0) -> 23563834.86
A146: Q22018 | B146: 2018Q2 | E146: 0.06264049576 | F146: =IFERROR(VLOOKUP(A146,'[5]Quarter of Maturity Dist'!$A:$C,3,FALSE),0) -> 17230905.44
A147: Q32018 | B147: 2018Q3 | E147: 0.05072482127 | F147: =IFERROR(VLOOKUP(A147,'[5]Quarter of Maturity Dist'!$A:$C,3,FALSE),0) -> 13953187.76
A148: Q42018 | B148: 2018Q4 | E148: 0.05947342134 | F148: =IFERROR(VLOOKUP(A148,'[5]Quarter of Maturity Dist'!$A:$C,3,FALSE),0) -> 16359718.85
A149: Q12019 | B149: 2019Q1 | E149: 0.1730369302 | F149: =IFERROR(VLOOKUP(A149,'[5]Quarter of Maturity Dist'!$A:$C,3,FALSE),0) -> 47598329.9
A150: Q22019 | B150: 2019Q2 | E150: 0.08554092332 | F150: =IFERROR(VLOOKUP(A150,'[5]Quarter of Maturity Dist'!$A:$C,3,FALSE),0) -> 23530266.53
A151: Q32019 | B151: 2019Q3 | E151: 0.04804366505 | F151: =IFERROR(VLOOKUP(A151,'[5]Quarter of Maturity Dist'!$A:$C,3,FALSE),0) -> 13215665.67
A152: Q42019 | B152: 2019Q4 | E152: 0.03623710845 | F152: =IFERROR(VLOOKUP(A152,'[5]Quarter of Maturity Dist'!$A:$C,3,FALSE),0) -> 9967963.72
A153: Q12020 | B153: 2020Q1 | E153: 0.1440382362 | F153: =IFERROR(VLOOKUP(A153,'[5]Quarter of Maturity Dist'!$A:$C,3,FALSE),0) -> 39621481.24
A154: Q22020 | B154: 2020Q2 | E154: 0.06868983666 | F154: =IFERROR(VLOOKUP(A154,'[5]Quarter of Maturity Dist'!$A:$C,3,FALSE),0) -> 18894934.75
A155: Q32020 | B155: 2020Q3 | E155: 0.03693063369 | F155: =IFERROR(VLOOKUP(A155,'[5]Quarter of Maturity Dist'!$A:$C,3,FALSE),0) -> 10158735.96
A156: Q42020 | B156: 2020Q4 | E156: 0.0106479374 | F156: =IFERROR(VLOOKUP(A156,'[5]Quarter of Maturity Dist'!$A:$C,3,FALSE),0) -> 2928993.46
A157: Q12021 | B157: 2021Q1 | E157: 0.001707634909 | F157: =IFERROR(VLOOKUP(A157,'[5]Quarter of Maturity Dist'!$A:$C,3,FALSE),0) -> 469729.61
A158: Q22021 | B158: 2021Q2 | E158: 0 | F158: =IFERROR(VLOOKUP(A158,'[5]Quarter of Maturity Dist'!$A:$C,3,FALSE),0) -> 0
A159: Q32021 | B159: 2021Q3 | E159: 0 | F159: =IFERROR(VLOOKUP(A159,'[5]Quarter of Maturity Dist'!$A:$C,3,FALSE),0) -> 0
A160: Q42021 | B160: 2021Q4 | E160: 0 | F160: =IFERROR(VLOOKUP(A160,'[5]Quarter of Maturity Dist'!$A:$C,3,FALSE),0) -> 0
A161: Q12022 | B161: 2022Q1 | E161: 0 | F161: =IFERROR(VLOOKUP(A161,'[5]Quarter of Maturity Dist'!$A:$C,3,FALSE),0) -> 0
A162: Q22022 | B162: 2022Q2 | E162: 0 | F162: =IFERROR(VLOOKUP(A162,'[5]Quarter of Maturity Dist'!$A:$C,3,FALSE),0) -> 0
A163: Q32022 | B163: 2022Q3 | E163: 0 | F163: =IFERROR(VLOOKUP(A163,'[5]Quarter of Maturity Dist'!$A:$C,3,FALSE),0) -> 0
A164: Q42022 | B164: 2022Q4 | E164: 0 | F164: =IFERROR(VLOOKUP(A164,'[5]Quarter of Maturity Dist'!$A:$C,3,FALSE),0) -> 0
E166: =SUM(E137:E164) -> 1 | F166: =SUM(F137:F165) -> 275076134.5 | G166: =F134-F166 -> -5.960464478e-07
A167: 0 to 6 months
A168: 07 to 12 months | B168: Seasoning Distribution
A169: 0 to 6 months | B169: 0 to 6 months | E169: =F169/F$180 -> 0.0004042561896 | F169: =IFERROR(VLOOKUP(A169,'[6]Seasoning Distribution'!$A:$C,3,FALSE),0) -> 111201.23
A170: 07 to 12 months | B170: 07 to 12 months | E170: 0.3380213664 | F170: =IFERROR(VLOOKUP(A170,'[6]Seasoning Distribution'!$A:$C,3,FALSE),0) -> 92981610.86
A171: 13 to 18 months | B171: 13 to 18 months | E171: 0.2629515795 | F171: =IFERROR(VLOOKUP(A171,'[6]Seasoning Distribution'!$A:$C,3,FALSE),0) -> 72331704.07
A172: 19 to 24 months | B172: 19 to 24 months | E172: 0.1798201156 | F172: =IFERROR(VLOOKUP(A172,'[6]Seasoning Distribution'!$A:$C,3,FALSE),0) -> 49464222.3
A173: 25 to 30 months | B173: 25 to 30 months | E173: 0.1087961731 | F173: =IFERROR(VLOOKUP(A173,'[6]Seasoning Distribution'!$A:$C,3,FALSE),0) -> 29927230.74
A174: 31 to 36 months | B174: 31 to 36 months | E174: 0.08366485486 | F174: =IFERROR(VLOOKUP(A174,'[6]Seasoning Distribution'!$A:$C,3,FALSE),0) -> 23014204.87
A175: 37 to 42 months | B175: 37 to 42 months | E175: 0.008573008938 | F175: =IFERROR(VLOOKUP(A175,'[6]Seasoning Distribution'!$A:$C,3,FALSE),0) -> 2358230.16
A176: 43 to 48 months | B176: 43 to 48 months | E176: 0.01100645192 | F176: =IFERROR(VLOOKUP(A176,'[6]Seasoning Distribution'!$A:$C,3,FALSE),0) -> 3027612.25
A177: 49 to 54 months | B177: 49 to 54 months | E177: 0.003088208148 | F177: =IFERROR(VLOOKUP(A177,'[6]Seasoning Distribution'!$A:$C,3,FALSE),0) -> 849492.36
A178: 55 to 60 months | B178: 55 to 60 months | E178: 0.0036289038 | F178: =IFERROR(VLOOKUP(A178,'[6]Seasoning Distribution'!$A:$C,3,FALSE),0) -> 998224.83
A179: 60+ months | B179: 61 to 72 months | E179: 4.508155541e-05 | F179: =IFERROR(VLOOKUP(A179,'[6]Seasoning Distribution'!$A:$C,3,FALSE),0) -> 12400.86
A180: 61 to 72 months | B180: Total | E180: =SUM(E169:E179) -> 1 | F180: =SUM(F169:F179) -> 275076134.5 | G180: =F166-F180 -> 0
B182: Remaining Term Distribution
A183: 0 - 12 months | B183: 0-12 Months | E183: =F183/F$189 -> 0.06370194644 | F183: =IFERROR(VLOOKUP(A183,'[7]Remaining Term'!$A:$C,3,FALSE),0) -> 17522885.19
A184: 13 - 24 months | B184: 13-24 Months | E184: 0.1876596761 | F184: =IFERROR(VLOOKUP(A184,'[7]Remaining Term'!$A:$C,3,FALSE),0) -> 51620698.3
A185: 25 - 36 months | B185: 25-36 Months | E185: 0.3734731739 | F185: =IFERROR(VLOOKUP(A185,'[7]Remaining Term'!$A:$C,3,FALSE),0) -> 102733557
A186: 37 - 48 months | B186: 37-48 Months | E186: 0.2923420974 | F186: =IFERROR(VLOOKUP(A186,'[7]Remaining Term'!$A:$C,3,FALSE),0) -> 80416334.11
A187: 49 - 60 months | B187: 49-60 Months | E187: 0.08282310622 | F187: =IFERROR(VLOOKUP(A187,'[7]Remaining Term'!$A:$C,3,FALSE),0) -> 22782659.91
A188: 60+ Months | B188: 60+ Months | E188: 0 | F188: =IFERROR(VLOOKUP(A188,'[7]Remaining Term'!$A:$C,3,FALSE),0) -> 0
E189: =SUM(E183:E188) -> 1 | F189: =SUM(F183:F188) -> 275076134.5 | G189: =F180-F189 -> 0
B191: Origination LVR Distribution
A192: 01. 10% to 20% | B192: 10% to 20% | E192: =F192/F$202 -> 0.0002415710113 | F192: =IFERROR(VLOOKUP(A192,'[7]LVR Band'!$A:$C,3,FALSE),0) -> 66450.42
A193: 02. 21% to 30% | B193: 21% to 30% | E193: 0.01025936225 | F193: =IFERROR(VLOOKUP(A193,'[7]LVR Band'!$A:$C,3,FALSE),0) -> 2822105.71
A194: 03. 31% to 40% | B194: 31% to 40% | E194: 0.03944824188 | F194: =IFERROR(VLOOKUP(A194,'[7]LVR Band'!$A:$C,3,FALSE),0) -> 10851269.89
A195: 04. 41% to 50% | B195: 41% to 50% | E195: 0.09521667845 | F195: =IFERROR(VLOOKUP(A195,'[7]LVR Band'!$A:$C,3,FALSE),0) -> 26191835.85
A196: 05. 51% to 60% | B196: 51% to 60% | E196: 0.146525665 | F196: =IFERROR(VLOOKUP(A196,'[7]LVR Band'!$A:$C,3,FALSE),0) -> 40305713.54
A197: 06. 61% to 70% | B197: 61% to 70% | E197: 0.2023916858 | F197: =IFERROR(VLOOKUP(A197,'[7]LVR Band'!$A:$C,3,FALSE),0) -> 55673122.6
A198: 07. 71% to 80% | B198: 71% to 80% | E198: 0.2099333936 | F198: =IFERROR(VLOOKUP(A198,'[7]LVR Band'!$A:$C,3,FALSE),0) -> 57747666.42
A199: 08. 81% to 90% | B199: 81% to 90% | E199: 0.1855272105 | F199: =IFERROR(VLOOKUP(A199,'[7]LVR Band'!$A:$C,3,FALSE),0) -> 51034107.91
A200: 09. 91% to 100% | B200: 91% to 100% | E200: 0.1104561915 | F200: =IFERROR(VLOOKUP(A200,'[7]LVR Band'!$A:$C,3,FALSE),0) -> 30383862.19
A201: > 100% | B201: > 100% | E201: 0 | F201: =IFERROR(VLOOKUP(A201,'[7]LVR Band'!$A:$C,3,FALSE),0) -> 0
E202: =SUM(E192:E201) -> 1 | F202: =SUM(F192:F201) -> 275076134.5 | G202: =F189-F202 -> 0
B204: New v Used
A205: New | B205: New | E205: =F205/F$208 -> 0.9151503341 | F205: =IFERROR(VLOOKUP(A205,'[5]New v Used'!$A:$C,3,FALSE),0) -> 251736016.4
A206: USed | B206: Used | E206: =F206/F$208 -> 0.08484966593 | F206: =IFERROR(VLOOKUP(A206,'[5]New v Used'!$A:$C,3,FALSE),0) -> 23340118.12
A207: Used
E208: =SUM(E205:E206) -> 1 | F208: =SUM(F205:F206) -> 275076134.5 | G208: =F202-F208 -> 7.152557373e-07
B210: Contract Type
A211: Finance Lease | B211: Finance Lease | E211: =F211/F$214 -> 0.01544419049 | F211: =IFERROR(VLOOKUP(A211,'[5]Loan Type'!$A:$C,3,FALSE),0) -> 4248328.22
A212: Goods Mortgage | B212: Goods Mortgage | E212: =F212/F$214 -> 0.9845558095 | F212: =IFERROR(VLOOKUP(A212,'[5]Loan Type'!$A:$C,3,FALSE),0) -> 270827806.3
A213: Hire Purchase | B213: Hire Purchase | E213: =F213/F$214 -> 0 | F213: =IFERROR(VLOOKUP(A213,'[5]Loan Type'!$A:$C,3,FALSE),0) -> 0
E214: =SUM(E211:E213) -> 1 | F214: =SUM(F211:F213) -> 275076134.5 | G214: =F208-F214 -> 0
... 30 more rows

Sheet Note Balance
C1: TOTAL NOTE BALANCES
D2: Total Notes | E2: Class A1 Notes | F2: Class A2 Notes | G2: Class B Notes | H2: Class C Notes | I2: Class D Notes
C3: Initial Invested Amount | D3: 350000000 | E3: 105000000 | F3: 198000000 | G3: 11300000 | H3: 10500000 | I3: 6200000
A4: (a) | C4: Invested Amount as at Previous Payment Date: 3 March 2016 | D4: 350000000 | E4: 105000000 | F4: 198000000 | G4: 11300000 | H4: 10500000 | I4: 6200000
A5: (b) | C5: Stated Amount as at Previous Payment Date: 3 March 2016 | D5: 350000000 | E5: 105000000 | F5: 198000000 | G5: 11300000 | H5: 10500000 | I5: 6200000
A6: (d) | C6: Principal Payments to Noteholders on Payment Date | D6: 350000000 | E6: 74839799.26 | F6: 0 | G6: 0 | H6: 0 | I6: 0
C7: Gross Aggregate Charge-Offs | D7: 0 | E7: 0 | F7: 0 | G7: 0 | H7: 0 | I7: 0
C8: Gross Aggregate Reinstatements of charge-offs | D8: 0 | E8: 0 | F8: 0 | G8: 0 | H8: 0 | I8: 0
A9: (e) | C9: Aggregate Charge-Offs for this Collection Period | D9: 84066.21 | E9: 0 | F9: 0 | G9: 0 | H9: 0 | I9: 0
A10: (f) | C10: Reinstatements relating to Charge-offs that have occurred this Collection Period | D10: 0 | E10: 0 | F10: 0 | G10: 0 | H10: 0 | I10: 0
C11: Aggregate Carry Over Charge-offs not previously reinstated | D11: 0 | E11: 0 | F11: 0 | G11: 0 | H11: 0 | I11: 0
C12: Reinstatements of Carry Over Charge-offs not previously reinstated | D12: 0 | E12: 0 | F12: 0 | G12: 0 | H12: 0 | I12: 0
C13: Aggregate Charge-Offs not reinstated and to be carried over to next period | D13: 84066.21 | E13: 0 | F13: 0 | G13: 0 | H13: 0 | I13: 0
C14: Invested Amount as at Payment Date: 16 May 2016 | D14: 275160200.7 | E14: 30160200.74 | F14: 198000000 | G14: 11300000 | H14: 10500000 | I14: 6200000
C15: Stated Amount as at Payment Date: 16 May 2016 | D15: 275076134.5 | E15: 30160200.74 | F15: 198000000 | G15: 11300000 | H15: 10500000 | I15: 6200000
C16: Bond Factor at Payment Date: 16 May 2016 | E16: 0.287240007 | F16: 1 | G16: 1 | H16: 1 | I16: 1
C17: Coupon Margin | E17: 0.006 | F17: 0.013 | G17: 0.02 | H17: 0.025 | I17: 0.0245
C18: Coupon Rate (3 month BBSW + margin) | E18: 0.0291 | F18: 0.0361 | G18: 0.0431 | H18: 0.0481 | I18: 0.0476
C19: Days in Coupon Period | E19: 74 | F19: 74 | G19: 74 | H19: 74 | I19: 74
C20: Coupon Entitlement to be paid out on the current Payment Date: 16 May 2016 | E20: 619471.23 | F20: 1449143.01 | G20: 98740.33 | H20: 102393.7 | I20: 59832.55

Sheet Cumulative Defaults
A1: Cumulative Defaults & Losses
A3: Month | B3: Gross Losses | C3: Recoveries | D3: Net Losses
A4: 2016-04-01 | B4: ='Collateral Tables'!E9/350000000 -> 0.0002401891714 | C4: ='Collateral Tables'!E23/350000000 -> 0 | D4: =B4-C4 -> 0.0002401891714
A5: 2016-07-01
A6: 2016-10-01
A7: 2017-01-01
A8: 2017-04-01
A9: 2017-07-01
A10: 2017-10-01
A11: 2018-01-01
A12: 2018-04-01
A13: 2018-07-01
A14: 2018-10-01
